[Event "Late-Titled-Tuesday-Blitz-March-12-2024"]
[Site "Chess.com"]
[Date "2024.03.12"]
[Round "5"]
[White "Danito1954"]
[Black "YegoryoCh"]
[Result "1-0"]
[WhiteElo "2319"]
[BlackElo "2492"]
[TimeControl "180+1"]
[EndTime "14:54:57 PDT"]
[Termination "Danito1954 won on time"]

1. e4 {[%clk 0:02:56.9]} 1... e5 {[%clk 0:02:59]} 2. Nf3 {[%clk 0:02:56.7]} 2...
Nc6 {[%clk 0:02:59.7]} 3. Bc4 {[%clk 0:02:57.3]} 3... Nf6 {[%clk 0:02:59.7]} 4.
d4 {[%clk 0:02:57.6]} 4... exd4 {[%clk 0:02:58.8]} 5. O-O {[%clk 0:02:57.3]}
5... Nxe4 {[%clk 0:02:58.9]} 6. Re1 {[%clk 0:02:52.9]} 6... d5 {[%clk
0:02:58.8]} 7. Bxd5 {[%clk 0:02:52.2]} 7... Qxd5 {[%clk 0:02:59.7]} 8. Nc3
{[%clk 0:02:52.4]} 8... Qh5 {[%clk 0:02:57.8]} 9. Nxe4 {[%clk 0:02:51]} 9... Be6
{[%clk 0:02:56.1]} 10. Bg5 {[%clk 0:02:51.5]} 10... Bd6 {[%clk 0:02:55.7]} 11.
Nxd6+ {[%clk 0:02:27.7]} 11... cxd6 {[%clk 0:02:56.6]} 12. Bf4 {[%clk
0:02:28.6]} 12... Qd5 {[%clk 0:02:55.9]} 13. c3 {[%clk 0:02:28.7]} 13... Rc8
{[%clk 0:02:55.8]} 14. Nxd4 {[%clk 0:02:28.1]} 14... Nxd4 {[%clk 0:02:54.7]} 15.
Qxd4 {[%clk 0:02:29]} 15... Qxd4 {[%clk 0:02:55]} 16. cxd4 {[%clk 0:02:28.7]}
16... Kd7 {[%clk 0:02:55.6]} 17. Rac1 {[%clk 0:02:28]} 17... Bxa2 {[%clk
0:02:48.3]} 18. Ra1 {[%clk 0:02:27.3]} 18... Bd5 {[%clk 0:02:47.7]} 19. Rxa7
{[%clk 0:02:26.6]} 19... Rc2 {[%clk 0:02:48.3]} 20. Ra5 {[%clk 0:02:24.6]} 20...
Kc6 {[%clk 0:02:40.1]} 21. f3 {[%clk 0:02:24.8]} 21... Bc4 {[%clk 0:02:17.6]}
22. Rc1 {[%clk 0:02:15.6]} 22... Rxc1+ {[%clk 0:02:16.9]} 23. Bxc1 {[%clk
0:02:16.5]} 23... Re8 {[%clk 0:02:17.1]} 24. Bd2 {[%clk 0:02:16.7]} 24... Re2
{[%clk 0:02:16.1]} 25. Bc3 {[%clk 0:02:16.1]} 25... Rc2 {[%clk 0:02:04.1]} 26.
h3 {[%clk 0:02:14.3]} 26... f6 {[%clk 0:02:03.4]} 27. Ra8 {[%clk 0:02:11]} 27...
b5 {[%clk 0:01:59.1]} 28. Rc8+ {[%clk 0:02:05.7]} 28... Kd5 {[%clk 0:01:47.8]}
29. Rc7 {[%clk 0:02:01.8]} 29... b4 {[%clk 0:01:40.3]} 30. Bxb4 {[%clk
0:01:59.8]} 30... Rxb2 {[%clk 0:01:40.9]} 31. Bxd6 {[%clk 0:01:56.2]} 31... Rb1+
{[%clk 0:01:26.8]} 32. Kh2 {[%clk 0:01:55.4]} 32... Bf1 {[%clk 0:01:27.2]} 33.
Bf4 {[%clk 0:01:49.1]} 33... g5 {[%clk 0:01:26.7]} 34. Rc1 {[%clk 0:01:45.5]}
34... Rb2 {[%clk 0:01:08.9]} 35. Rxf1 {[%clk 0:01:43.6]} 35... gxf4 {[%clk
0:01:09.5]} 36. Re1 {[%clk 0:01:42.1]} 36... Kxd4 {[%clk 0:00:50.9]} 37. Re4+
{[%clk 0:01:41.6]} 37... Kd5 {[%clk 0:00:51.3]} 38. Rxf4 {[%clk 0:01:42.5]}
38... Ke5 {[%clk 0:00:51.9]} 39. Re4+ {[%clk 0:01:41.4]} 39... Kf5 {[%clk
0:00:51.5]} 40. h4 {[%clk 0:01:41.6]} 40... h5 {[%clk 0:00:50.9]} 41. Kh3 {[%clk
0:01:40.6]} 41... Rb3 {[%clk 0:00:50.7]} 42. Ra4 {[%clk 0:01:40.5]} 42... Rc3
{[%clk 0:00:49.2]} 43. Ra5+ {[%clk 0:01:40.9]} 43... Kg6 {[%clk 0:00:49.7]} 44.
Kg3 {[%clk 0:01:41.5]} 44... Rb3 {[%clk 0:00:49.8]} 45. Ra4 {[%clk 0:01:41.3]}
45... Rc3 {[%clk 0:00:49.8]} 46. Kf4 {[%clk 0:01:40.9]} 46... Rc1 {[%clk
0:00:44.3]} 47. g3 {[%clk 0:01:40.7]} 47... Rc3 {[%clk 0:00:43.2]} 48. Rb4
{[%clk 0:01:40.5]} 48... Ra3 {[%clk 0:00:42.6]} 49. g4 {[%clk 0:01:40.8]} 49...
Rc3 {[%clk 0:00:38.4]} 50. Rd4 {[%clk 0:01:35.8]} 50... Ra3 {[%clk 0:00:38]} 51.
Rc4 {[%clk 0:01:35.4]} 51... Rb3 {[%clk 0:00:37.8]} 52. Re4 {[%clk 0:01:32.7]}
52... Ra3 {[%clk 0:00:30.2]} 53. Rc4 {[%clk 0:01:33.3]} 53... Rb3 {[%clk
0:00:30.3]} 54. gxh5+ {[%clk 0:01:32.9]} 54... Kxh5 {[%clk 0:00:29.8]} 55. Rc8
{[%clk 0:01:33.8]} 55... Rb4+ {[%clk 0:00:22.2]} 56. Kg3 {[%clk 0:01:33.6]}
56... Ra4 {[%clk 0:00:18.3]} 57. Rg8 {[%clk 0:01:32.9]} 57... Rb4 {[%clk
0:00:17.4]} 58. Rg4 {[%clk 0:01:32.4]} 58... Rb3 {[%clk 0:00:13.5]} 59. Rf4
{[%clk 0:01:31.3]} 59... Kg6 {[%clk 0:00:13.3]} 60. Kg4 {[%clk 0:01:32]} 60...
Rb5 {[%clk 0:00:11.2]} 61. Rc4 {[%clk 0:01:29.5]} 61... Ra5 {[%clk 0:00:10.8]}
62. Rb4 {[%clk 0:01:26.8]} 62... Rc5 {[%clk 0:00:10.9]} 63. Rd4 {[%clk
0:01:26.5]} 63... Ra5 {[%clk 0:00:11.1]} 64. Rd8 {[%clk 0:01:26.7]} 64... Ra1
{[%clk 0:00:08.8]} 65. h5+ {[%clk 0:01:25.8]} 65... Kf7 {[%clk 0:00:08.4]} 66.
f4 {[%clk 0:01:23.2]} 66... Ra5 {[%clk 0:00:05.3]} 67. Rb8 {[%clk 0:01:21.6]}
67... Kg7 {[%clk 0:00:04.4]} 68. Rc8 {[%clk 0:01:19.4]} 68... Kh6 {[%clk
0:00:03.5]} 69. Rg8 {[%clk 0:01:18.5]} 69... f5+ {[%clk 0:00:02]} 70. Kh4 {[%clk
0:01:15]} 70... Ra4 {[%clk 0:00:02.9]} 71. Rg6+ {[%clk 0:01:14.5]} 71... Kh7
{[%clk 0:00:03.5]} 72. Kg5 {[%clk 0:01:15.2]} 72... Ra1 {[%clk 0:00:03.9]} 73.
Rb6 {[%clk 0:01:12.9]} 73... Rh1 {[%clk 0:00:03.1]} 74. Rb7+ {[%clk 0:01:12.4]}
74... Kg8 {[%clk 0:00:03.6]} 75. Kxf5 {[%clk 0:01:11.2]} 75... Kf8 {[%clk
0:00:01.7]} 76. Kf6 {[%clk 0:01:11.1]} 76... Kg8 {[%clk 0:00:01.2]} 77. f5
{[%clk 0:01:10.7]} 1-0

[Event "Late-Titled-Tuesday-Blitz-March-12-2024"]
[Site "Chess.com"]
[Date "2024.03.12"]
[Round "5"]
[White "aa175"]
[Black "rasmussvane"]
[Result "0-1"]
[WhiteElo "2728"]
[BlackElo "2953"]
[TimeControl "180+1"]
[EndTime "14:54:58 PDT"]
[Termination "rasmussvane won by resignation"]

1. d4 {[%clk 0:03:00.9]} 1... Nf6 {[%clk 0:02:57.5]} 2. Nf3 {[%clk 0:03:00.8]}
2... d5 {[%clk 0:02:57]} 3. c3 {[%clk 0:02:59.5]} 3... c6 {[%clk 0:02:47.7]} 4.
Bf4 {[%clk 0:02:59]} 4... Bf5 {[%clk 0:02:46.1]} 5. e3 {[%clk 0:02:54.3]} 5...
Nbd7 {[%clk 0:02:45.3]} 6. Ne5 {[%clk 0:02:50.3]} 6... e6 {[%clk 0:02:33.1]} 7.
Nd2 {[%clk 0:02:39.8]} 7... h5 {[%clk 0:02:26.4]} 8. Ndf3 {[%clk 0:02:31.8]}
8... Be7 {[%clk 0:02:21.5]} 9. Bd3 {[%clk 0:02:27.7]} 9... Bxd3 {[%clk
0:02:18.2]} 10. Qxd3 {[%clk 0:02:28.6]} 10... Ne4 {[%clk 0:02:14.9]} 11. h4
{[%clk 0:02:26.7]} 11... Nxe5 {[%clk 0:02:04.3]} 12. Bxe5 {[%clk 0:02:26.2]}
12... Bf6 {[%clk 0:02:00]} 13. Ke2 {[%clk 0:01:51.9]} 13... Bxe5 {[%clk
0:01:55.1]} 14. Nxe5 {[%clk 0:01:51.6]} 14... Qf6 {[%clk 0:01:51.5]} 15. Raf1
{[%clk 0:01:48.8]} 15... Qf5 {[%clk 0:01:46]} 16. Ke1 {[%clk 0:01:31.7]} 16...
f6 {[%clk 0:01:41.2]} 17. Nf3 {[%clk 0:01:29.7]} 17... Qg4 {[%clk 0:01:33.1]}
18. Nd2 {[%clk 0:01:18.3]} 18... O-O-O {[%clk 0:01:25.2]} 19. Nxe4 {[%clk
0:01:06.4]} 19... dxe4 {[%clk 0:01:25.3]} 20. Qe2 {[%clk 0:00:57]} 20... Qf5
{[%clk 0:01:25.3]} 21. Kd2 {[%clk 0:00:55.7]} 21... e5 {[%clk 0:01:24.7]} 22.
Kc2 {[%clk 0:00:55]} 22... exd4 {[%clk 0:01:21.5]} 23. cxd4 {[%clk 0:00:49.4]}
23... Rd5 {[%clk 0:01:21.5]} 24. Kb1 {[%clk 0:00:47.5]} 24... Kb8 {[%clk
0:01:17.8]} 25. Rc1 {[%clk 0:00:47.4]} 25... Rhd8 {[%clk 0:01:11.4]} 26. Rc2
{[%clk 0:00:39.9]} 26... Qg6 {[%clk 0:01:11.1]} 27. g3 {[%clk 0:00:39.9]} 27...
Qf7 {[%clk 0:01:11.3]} 28. Rhc1 {[%clk 0:00:38.8]} 28... g5 {[%clk 0:01:10.7]}
29. Rh1 {[%clk 0:00:37.7]} 29... Rh8 {[%clk 0:00:55.7]} 30. Rcc1 {[%clk
0:00:29.3]} 30... a6 {[%clk 0:00:55.1]} 31. Rh2 {[%clk 0:00:28.2]} 31... Rf5
{[%clk 0:00:48.9]} 32. Rch1 {[%clk 0:00:22.7]} 32... Rf3 {[%clk 0:00:29.7]} 33.
Qc2 {[%clk 0:00:13.1]} 33... Re8 {[%clk 0:00:23.4]} 34. Qc5 {[%clk 0:00:08.4]}
34... g4 {[%clk 0:00:17.8]} 35. Rc1 {[%clk 0:00:06.5]} 35... Rd8 {[%clk
0:00:18.3]} 36. Qb4 {[%clk 0:00:06.1]} 36... Rd5 {[%clk 0:00:18.4]} 37. Rc5
{[%clk 0:00:04.7]} 37... Qe7 {[%clk 0:00:15.3]} 38. Qc4 {[%clk 0:00:02.5]} 38...
Rxc5 {[%clk 0:00:14.8]} 39. dxc5 {[%clk 0:00:03.4]} 39... Qd7 {[%clk 0:00:14.9]}
40. Kc2 {[%clk 0:00:03.6]} 40... Kc7 {[%clk 0:00:11.1]} 41. Qc3 {[%clk
0:00:02.7]} 41... Qd5 {[%clk 0:00:10.9]} 42. b3 {[%clk 0:00:03]} 42... Qf5
{[%clk 0:00:08.2]} 43. Qa5+ {[%clk 0:00:03.1]} 43... Kc8 {[%clk 0:00:08]} 44.
Qd2 {[%clk 0:00:02.2]} 44... Qxc5+ {[%clk 0:00:08.2]} 45. Kb2 {[%clk 0:00:02.9]}
45... Kc7 {[%clk 0:00:08]} 46. a3 {[%clk 0:00:02.7]} 46... Qe5+ {[%clk
0:00:08.3]} 47. Ka2 {[%clk 0:00:03.3]} 47... a5 {[%clk 0:00:08.5]} 48. Rh1
{[%clk 0:00:03.7]} 48... Qd5 {[%clk 0:00:08.5]} 49. Qc2 {[%clk 0:00:03.4]} 49...
Qf5 {[%clk 0:00:08.2]} 50. Rf1 {[%clk 0:00:03.6]} 50... Rxe3 {[%clk 0:00:06.3]}
51. fxe3 {[%clk 0:00:01.8]} 51... Qxf1 {[%clk 0:00:06.4]} 52. Qc5 {[%clk
0:00:02.4]} 52... Qf2+ {[%clk 0:00:06.2]} 53. Ka1 {[%clk 0:00:02.6]} 53... Qxg3
{[%clk 0:00:05.7]} 54. Qxa5+ {[%clk 0:00:02.7]} 54... Kd7 {[%clk 0:00:04.8]} 55.
Qf5+ {[%clk 0:00:03]} 55... Ke7 {[%clk 0:00:04.7]} 56. Qxe4+ {[%clk 0:00:03.4]}
56... Qe5+ {[%clk 0:00:04.5]} 57. Qxe5+ {[%clk 0:00:03.7]} 57... fxe5 {[%clk
0:00:05.4]} 0-1

[Event "Late-Titled-Tuesday-Blitz-March-12-2024"]
[Site "Chess.com"]
[Date "2024.03.12"]
[Round "5"]
[White "RebelJohnny"]
[Black "KNVB"]
[Result "0-1"]
[WhiteElo "2546"]
[BlackElo "2776"]
[TimeControl "180+1"]
[EndTime "14:55:00 PDT"]
[Termination "KNVB won by resignation"]

1. e4 {[%clk 0:03:00.9]} 1... d5 {[%clk 0:02:58]} 2. exd5 {[%clk 0:03:00.6]}
2... Qxd5 {[%clk 0:02:58.9]} 3. Nc3 {[%clk 0:03:00.9]} 3... Qe5+ {[%clk
0:02:59.4]} 4. Be2 {[%clk 0:02:49.5]} 4... c6 {[%clk 0:02:59.4]} 5. Nf3 {[%clk
0:02:49]} 5... Qc7 {[%clk 0:02:59.9]} 6. d4 {[%clk 0:02:48.5]} 6... Nf6 {[%clk
0:03:00.5]} 7. Bc4 {[%clk 0:02:27.7]} 7... Bg4 {[%clk 0:02:40.6]} 8. h3 {[%clk
0:02:27.5]} 8... Bxf3 {[%clk 0:02:36.7]} 9. Qxf3 {[%clk 0:02:28.4]} 9... e6
{[%clk 0:02:37.4]} 10. g4 {[%clk 0:02:24.1]} 10... Nbd7 {[%clk 0:02:33.7]} 11.
Bd2 {[%clk 0:02:14.6]} 11... Bd6 {[%clk 0:02:06.7]} 12. O-O-O {[%clk 0:02:13.3]}
12... Nb6 {[%clk 0:02:02.8]} 13. Bd3 {[%clk 0:02:13.1]} 13... O-O-O {[%clk
0:01:50.2]} 14. g5 {[%clk 0:01:51.4]} 14... Nfd5 {[%clk 0:01:49.8]} 15. Ne4
{[%clk 0:01:51.1]} 15... Bf4 {[%clk 0:01:50.2]} 16. c4 {[%clk 0:01:32.5]} 16...
Bxd2+ {[%clk 0:01:48.3]} 17. Rxd2 {[%clk 0:01:33.4]} 17... Qf4 {[%clk
0:01:46.9]} 18. Qxf4 {[%clk 0:01:14.9]} 18... Nxf4 {[%clk 0:01:47.8]} 19. c5
{[%clk 0:01:15.4]} 19... Rxd4 {[%clk 0:01:14.4]} 20. Nd6+ {[%clk 0:01:14.5]}
20... Kb8 {[%clk 0:00:39.2]} 21. Rhd1 {[%clk 0:01:09.4]} 21... Nd7 {[%clk
0:00:13]} 22. Bf1 {[%clk 0:00:34.4]} 22... Rxd2 {[%clk 0:00:09.5]} 23. Rxd2
{[%clk 0:00:35.3]} 23... Nxc5 {[%clk 0:00:05.3]} 24. Nxf7 {[%clk 0:00:35.9]}
24... Rf8 {[%clk 0:00:05.9]} 25. Ne5 {[%clk 0:00:36.1]} 25... Kc8 {[%clk
0:00:01.8]} 26. f3 {[%clk 0:00:34.8]} 26... Nd5 {[%clk 0:00:01.9]} 27. Be2
{[%clk 0:00:25.3]} 27... Rf5 {[%clk 0:00:02]} 28. Nc4 {[%clk 0:00:25.6]} 28...
Kc7 {[%clk 0:00:02.1]} 29. a3 {[%clk 0:00:25.6]} 29... Rxg5 {[%clk 0:00:02.5]}
30. Kc2 {[%clk 0:00:25.1]} 30... a6 {[%clk 0:00:02.4]} 31. b4 {[%clk 0:00:25.5]}
31... Nd7 {[%clk 0:00:02.9]} 32. Bd3 {[%clk 0:00:25.4]} 32... h6 {[%clk
0:00:02.6]} 33. Be4 {[%clk 0:00:25.5]} 33... N7f6 {[%clk 0:00:02.9]} 34. Na5
{[%clk 0:00:20.7]} 34... Rg3 {[%clk 0:00:02.8]} 35. Nb3 {[%clk 0:00:20]} 35...
b6 {[%clk 0:00:02.9]} 36. Nd4 {[%clk 0:00:20.2]} 36... Kd6 {[%clk 0:00:02.9]}
37. h4 {[%clk 0:00:17]} 37... g5 {[%clk 0:00:02.6]} 38. hxg5 {[%clk 0:00:17.1]}
38... hxg5 {[%clk 0:00:03.1]} 39. Rh2 {[%clk 0:00:16.2]} 39... g4 {[%clk
0:00:03.7]} 40. Bxd5 {[%clk 0:00:15.7]} 40... cxd5 {[%clk 0:00:02.8]} 41. fxg4
{[%clk 0:00:15.8]} 41... Rxg4 {[%clk 0:00:03.7]} 42. Kc3 {[%clk 0:00:15.1]}
42... Ne4+ {[%clk 0:00:03.7]} 43. Kd3 {[%clk 0:00:15.8]} 43... Rg3+ {[%clk
0:00:02.6]} 44. Kc2 {[%clk 0:00:14]} 44... Rc3+ {[%clk 0:00:02]} 45. Kb2 {[%clk
0:00:14.1]} 45... Rd3 {[%clk 0:00:02.6]} 46. Nb3 {[%clk 0:00:12.1]} 46... Rf3
{[%clk 0:00:02.2]} 47. Rh8 {[%clk 0:00:11.5]} 47... Rf2+ {[%clk 0:00:02.6]} 48.
Kc1 {[%clk 0:00:11]} 48... e5 {[%clk 0:00:02.8]} 49. Rd8+ {[%clk 0:00:11.3]}
49... Ke6 {[%clk 0:00:03]} 50. Re8+ {[%clk 0:00:11.6]} 50... Kf5 {[%clk
0:00:02]} 51. Rb8 {[%clk 0:00:10.3]} 51... d4 {[%clk 0:00:02]} 52. Rxb6 {[%clk
0:00:10.2]} 52... Nc3 {[%clk 0:00:02.3]} 53. Rxa6 {[%clk 0:00:08.5]} 53... d3
{[%clk 0:00:02.3]} 54. Na1 {[%clk 0:00:06.8]} 54... d2+ {[%clk 0:00:02.1]} 0-1

[Event "Late-Titled-Tuesday-Blitz-March-12-2024"]
[Site "Chess.com"]
[Date "2024.03.12"]
[Round "5"]
[White "kids2010"]
[Black "SpeedofLight0"]
[Result "0-1"]
[WhiteElo "2771"]
[BlackElo "3083"]
[TimeControl "180+1"]
[EndTime "14:55:05 PDT"]
[Termination "SpeedofLight0 won by resignation"]

1. e4 {[%clk 0:02:58.8]} 1... Nc6 {[%clk 0:03:00.2]} 2. d4 {[%clk 0:02:56.1]}
2... d5 {[%clk 0:02:59.5]} 3. Nc3 {[%clk 0:02:40.6]} 3... dxe4 {[%clk
0:02:59.2]} 4. d5 {[%clk 0:02:40.5]} 4... Nb8 {[%clk 0:02:59.7]} 5. Nxe4 {[%clk
0:02:39.4]} 5... c6 {[%clk 0:03:00.3]} 6. Bc4 {[%clk 0:02:31.2]} 6... cxd5
{[%clk 0:03:00]} 7. Bxd5 {[%clk 0:02:11.2]} 7... e6 {[%clk 0:03:00]} 8. Bb3
{[%clk 0:02:09.9]} 8... Qxd1+ {[%clk 0:02:59.9]} 9. Kxd1 {[%clk 0:02:10.8]} 9...
Nc6 {[%clk 0:03:00.6]} 10. Nf3 {[%clk 0:02:09]} 10... Nf6 {[%clk 0:03:00.3]} 11.
Nxf6+ {[%clk 0:02:05.8]} 11... gxf6 {[%clk 0:03:01.2]} 12. Be3 {[%clk
0:02:06.1]} 12... Rg8 {[%clk 0:02:58.9]} 13. g3 {[%clk 0:02:05.9]} 13... e5
{[%clk 0:02:59.2]} 14. Ke2 {[%clk 0:02:05.9]} 14... Bg4 {[%clk 0:02:50.4]} 15.
h3 {[%clk 0:02:04.8]} 15... Be6 {[%clk 0:02:50.4]} 16. c3 {[%clk 0:02:00.3]}
16... O-O-O {[%clk 0:02:36.3]} 17. Rad1 {[%clk 0:01:51.9]} 17... Rxd1 {[%clk
0:02:33.3]} 18. Rxd1 {[%clk 0:01:52.8]} 18... Bxh3 {[%clk 0:02:29.6]} 19. Bxf7
{[%clk 0:01:50.5]} 19... Rg7 {[%clk 0:02:29.6]} 20. Bh5 {[%clk 0:01:31.2]} 20...
Be6 {[%clk 0:02:27.5]} 21. b3 {[%clk 0:01:29.2]} 21... Rc7 {[%clk 0:02:21.1]}
22. Nh4 {[%clk 0:01:25.4]} 22... b6 {[%clk 0:02:05.4]} 23. Be8 {[%clk
0:01:18.8]} 23... Ba3 {[%clk 0:01:35.7]} 24. f3 {[%clk 0:00:53.9]} 24... Ne7
{[%clk 0:01:29.7]} 25. c4 {[%clk 0:00:51.4]} 25... Nc6 {[%clk 0:01:29.9]} 26.
Bxc6 {[%clk 0:00:50.9]} 26... Rxc6 {[%clk 0:01:30.8]} 27. g4 {[%clk 0:00:51.4]}
27... Rc7 {[%clk 0:01:27.2]} 28. Nf5 {[%clk 0:00:50.1]} 28... Kb7 {[%clk
0:01:18.6]} 29. Nd6+ {[%clk 0:00:46.1]} 29... Bxd6 {[%clk 0:01:15.8]} 30. Rxd6
{[%clk 0:00:47]} 30... Re7 {[%clk 0:01:16.5]} 31. c5 {[%clk 0:00:43.1]} 31...
bxc5 {[%clk 0:01:14.5]} 32. Bxc5 {[%clk 0:00:44]} 32... Re8 {[%clk 0:01:15.1]}
33. Ke3 {[%clk 0:00:42.8]} 33... f5 {[%clk 0:01:12.9]} 34. gxf5 {[%clk
0:00:42.6]} 34... Bxf5 {[%clk 0:01:13.8]} 35. Rh6 {[%clk 0:00:43]} 35... Bg6
{[%clk 0:01:13.7]} 36. Rh4 {[%clk 0:00:42.4]} 36... a5 {[%clk 0:01:05]} 37. b4
{[%clk 0:00:39.5]} 37... Kc6 {[%clk 0:01:03]} 38. a3 {[%clk 0:00:38.5]} 38...
Rd8 {[%clk 0:01:02.5]} 39. Ke2 {[%clk 0:00:23.2]} 39... Rd3 {[%clk 0:00:59.6]}
40. Rh1 {[%clk 0:00:17.4]} 40... Rxa3 {[%clk 0:00:56.9]} 41. Rc1 {[%clk
0:00:17.7]} 41... Ra2+ {[%clk 0:00:57.1]} 42. Ke3 {[%clk 0:00:17.5]} 42... a4
{[%clk 0:00:28.4]} 43. Bd4+ {[%clk 0:00:16.5]} 43... Kd6 {[%clk 0:00:26.6]} 44.
Bc3 {[%clk 0:00:15.7]} 44... Ra3 {[%clk 0:00:21.1]} 45. Kd2 {[%clk 0:00:14]}
45... Kd5 {[%clk 0:00:20.6]} 46. Re1 {[%clk 0:00:11]} 46... Ra2+ {[%clk
0:00:19]} 47. Kd1 {[%clk 0:00:10.3]} 47... e4 {[%clk 0:00:14.6]} 48. fxe4+
{[%clk 0:00:10.2]} 48... Bxe4 {[%clk 0:00:15.5]} 49. b5 {[%clk 0:00:10.3]} 49...
Bc2+ {[%clk 0:00:13.2]} 50. Kc1 {[%clk 0:00:09.7]} 50... Bd3 {[%clk 0:00:14.1]}
51. Re5+ {[%clk 0:00:05.4]} 51... Kc4 {[%clk 0:00:14.4]} 52. Bd2 {[%clk
0:00:04.6]} 52... Rc2+ {[%clk 0:00:13.2]} 53. Kd1 {[%clk 0:00:05]} 53... Rb2
{[%clk 0:00:13.7]} 54. b6 {[%clk 0:00:05.3]} 54... Rxb6 {[%clk 0:00:12.2]} 55.
Ra5 {[%clk 0:00:06.2]} 55... Rb1+ {[%clk 0:00:11.8]} 56. Bc1 {[%clk 0:00:06.3]}
56... Kb4 {[%clk 0:00:11.5]} 57. Kd2 {[%clk 0:00:06.8]} 57... Kxa5 {[%clk
0:00:11]} 58. Ba3 {[%clk 0:00:06.5]} 58... Rb3 {[%clk 0:00:11]} 59. Bd6 {[%clk
0:00:07.4]} 59... Kb5 {[%clk 0:00:11.7]} 0-1

[Event "Late-Titled-Tuesday-Blitz-March-12-2024"]
[Site "Chess.com"]
[Date "2024.03.12"]
[Round "5"]
[White "GoValya"]
[Black "SergioMoralesG"]
[Result "1/2-1/2"]
[WhiteElo "2269"]
[BlackElo "2481"]
[TimeControl "180+1"]
[EndTime "14:55:05 PDT"]
[Termination "Game drawn by stalemate"]

1. d4 {[%clk 0:03:00.9]} 1... d5 {[%clk 0:02:58.8]} 2. Nf3 {[%clk 0:03:01]} 2...
Nf6 {[%clk 0:02:58.4]} 3. g3 {[%clk 0:03:01.4]} 3... Bf5 {[%clk 0:02:58]} 4. Bg2
{[%clk 0:03:01.2]} 4... h6 {[%clk 0:02:56.2]} 5. c4 {[%clk 0:03:01.2]} 5... e6
{[%clk 0:02:55.9]} 6. O-O {[%clk 0:03:01.8]} 6... c6 {[%clk 0:02:55.9]} 7. Nc3
{[%clk 0:03:02.1]} 7... Be7 {[%clk 0:02:53.8]} 8. Nd2 {[%clk 0:03:02.6]} 8...
O-O {[%clk 0:02:50.3]} 9. f3 {[%clk 0:03:02.3]} 9... Bg6 {[%clk 0:02:45.8]} 10.
e4 {[%clk 0:03:01]} 10... dxe4 {[%clk 0:02:41.7]} 11. Ndxe4 {[%clk 0:03:01.2]}
11... Nbd7 {[%clk 0:02:37.4]} 12. Be3 {[%clk 0:03:00.7]} 12... e5 {[%clk
0:02:30.4]} 13. d5 {[%clk 0:02:57.2]} 13... cxd5 {[%clk 0:01:59.6]} 14. cxd5
{[%clk 0:02:58.1]} 14... Re8 {[%clk 0:01:51.7]} 15. d6 {[%clk 0:02:49.1]} 15...
Bf8 {[%clk 0:01:51.4]} 16. Nb5 {[%clk 0:02:45.4]} 16... Nxe4 {[%clk 0:01:35.5]}
17. fxe4 {[%clk 0:02:46.3]} 17... Re6 {[%clk 0:01:32.5]} 18. Bh3 {[%clk
0:01:17.8]} 18... Rf6 {[%clk 0:01:31.1]} 19. Rxf6 {[%clk 0:01:17.8]} 19... Nxf6
{[%clk 0:01:08.3]} 20. Nc7 {[%clk 0:01:17.2]} 20... Rc8 {[%clk 0:00:52.4]} 21.
Bxc8 {[%clk 0:01:10.7]} 21... Qxc8 {[%clk 0:00:53.3]} 22. Rc1 {[%clk 0:01:05.8]}
22... Bxe4 {[%clk 0:00:44.2]} 23. d7 {[%clk 0:00:43.2]} 23... Nxd7 {[%clk
0:00:35.6]} 24. Ne6 {[%clk 0:00:25.8]} 24... Bc6 {[%clk 0:00:34.6]} 25. Nxf8
{[%clk 0:00:25.7]} 25... Nxf8 {[%clk 0:00:35.3]} 26. Bxa7 {[%clk 0:00:20]} 26...
Qh3 {[%clk 0:00:33.1]} 27. Qe2 {[%clk 0:00:20.1]} 27... Ne6 {[%clk 0:00:32.2]}
28. Be3 {[%clk 0:00:18.5]} 28... h5 {[%clk 0:00:27.7]} 29. a3 {[%clk 0:00:17.5]}
29... h4 {[%clk 0:00:27.8]} 30. gxh4 {[%clk 0:00:16.3]} 30... Bf3 {[%clk
0:00:24.3]} 31. Qf2 {[%clk 0:00:15.8]} 31... e4 {[%clk 0:00:15.1]} 32. Qg3
{[%clk 0:00:15.8]} 32... Qf5 {[%clk 0:00:13.8]} 33. Rc8+ {[%clk 0:00:14.6]}
33... Kh7 {[%clk 0:00:13.3]} 34. Rc1 {[%clk 0:00:14.3]} 34... Qd5 {[%clk
0:00:11.3]} 35. Rf1 {[%clk 0:00:13.6]} 35... Qd3 {[%clk 0:00:09.9]} 36. Bf2
{[%clk 0:00:13.2]} 36... Be2 {[%clk 0:00:07.1]} 37. Qxd3 {[%clk 0:00:11.8]}
37... exd3 {[%clk 0:00:08]} 38. Be3 {[%clk 0:00:08.8]} 38... Bxf1 {[%clk
0:00:07.1]} 39. Kxf1 {[%clk 0:00:09.7]} 39... Kg6 {[%clk 0:00:06.2]} 40. Ke1
{[%clk 0:00:09]} 40... Kf5 {[%clk 0:00:06.5]} 41. Kd2 {[%clk 0:00:09.5]} 41...
Ke4 {[%clk 0:00:07.1]} 42. b4 {[%clk 0:00:09.4]} 42... Nc7 {[%clk 0:00:06.9]}
43. a4 {[%clk 0:00:09.5]} 43... Nd5 {[%clk 0:00:07.1]} 44. Bg5 {[%clk 0:00:10]}
44... Nxb4 {[%clk 0:00:07]} 45. a5 {[%clk 0:00:09.5]} 45... Nc6 {[%clk
0:00:06.9]} 46. a6 {[%clk 0:00:07.9]} 46... bxa6 {[%clk 0:00:06.9]} 47. h5
{[%clk 0:00:08.5]} 47... f6 {[%clk 0:00:05.8]} 48. h6 {[%clk 0:00:08.1]} 48...
gxh6 {[%clk 0:00:05.7]} 49. Bxf6 {[%clk 0:00:08.5]} 49... a5 {[%clk 0:00:05.6]}
50. Bg7 {[%clk 0:00:08.9]} 50... h5 {[%clk 0:00:05.6]} 51. h4 {[%clk 0:00:08.4]}
51... a4 {[%clk 0:00:06.1]} 52. Bf8 {[%clk 0:00:08.7]} 52... Nd4 {[%clk
0:00:06]} 53. Bg7 {[%clk 0:00:07.7]} 53... Nf3+ {[%clk 0:00:06.4]} 54. Kd1
{[%clk 0:00:07.8]} 54... a3 {[%clk 0:00:06.9]} 55. Bf8 {[%clk 0:00:07.9]} 55...
Nxh4 {[%clk 0:00:07.1]} 56. Be7 {[%clk 0:00:07.8]} 56... a2 {[%clk 0:00:06.6]}
57. Bf6 {[%clk 0:00:07.7]} 57... Nf5 {[%clk 0:00:07.5]} 58. Bh8 {[%clk
0:00:06.5]} 58... Nd4 {[%clk 0:00:08.4]} 59. Bxd4 {[%clk 0:00:05.8]} 59... Kxd4
{[%clk 0:00:09.3]} 60. Kd2 {[%clk 0:00:05.2]} 60... a1=Q {[%clk 0:00:10.2]}
1/2-1/2